[Event "*** Titled Tuesday Blitz"]
[Site "Chess.com"]
[Date "2021.03.16"]
[Round "8"]
[White "Nemsko"]
[Black "WiktoriaPOL"]
[Result "1-0"]
[WhiteElo "2310"]
[BlackElo "2111"]
[TimeControl "180+1"]
[EndTime "11:28:22 PDT"]
[Termination "Nemsko won on time"]

1. e4 {[%clk 0:03:00.9]} 1... c5 {[%clk 0:02:59.3]} 2. Nf3 {[%clk 0:03:00.5]}
2... d6 {[%clk 0:02:59.1]} 3. d4 {[%clk 0:03:00.8]} 3... cxd4 {[%clk 0:02:59.3]}
4. Nxd4 {[%clk 0:03:01.7]} 4... Nf6 {[%clk 0:02:59.5]} 5. Nc3 {[%clk 0:03:02.2]}
5... a6 {[%clk 0:02:59.4]} 6. Be3 {[%clk 0:03:02.4]} 6... e5 {[%clk 0:02:58.7]}
7. Nb3 {[%clk 0:03:02.6]} 7... Be6 {[%clk 0:02:58.4]} 8. h3 {[%clk 0:03:01.9]}
8... Nbd7 {[%clk 0:02:57.9]} 9. g4 {[%clk 0:02:56]} 9... b5 {[%clk 0:02:55.4]}
10. Qf3 {[%clk 0:02:55.7]} 10... Nb6 {[%clk 0:02:50.2]} 11. O-O-O {[%clk
0:02:54.9]} 11... Nc4 {[%clk 0:02:49.1]} 12. g5 {[%clk 0:02:46.6]} 12... Nd7
{[%clk 0:02:45.2]} 13. Kb1 {[%clk 0:02:36.7]} 13... Nxe3 {[%clk 0:02:42.9]} 14.
Qxe3 {[%clk 0:02:35.9]} 14... Be7 {[%clk 0:02:41.7]} 15. h4 {[%clk 0:02:34.5]}
15... h6 {[%clk 0:02:24]} 16. Be2 {[%clk 0:02:08.9]} 16... h5 {[%clk 0:02:04.1]}
17. f4 {[%clk 0:02:04.8]} 17... exf4 {[%clk 0:02:02.6]} 18. Qxf4 {[%clk
0:02:05.7]} 18... g6 {[%clk 0:02:01.3]} 19. Nd5 {[%clk 0:02:02.1]} 19... Bxd5
{[%clk 0:01:58.4]} 20. exd5 {[%clk 0:01:53.9]} 20... Ne5 {[%clk 0:01:58.2]} 21.
Nd4 {[%clk 0:01:51.2]} 21... Rc8 {[%clk 0:01:50.7]} 22. Rhe1 {[%clk 0:01:47.5]}
22... O-O {[%clk 0:01:49.7]} 23. Bd3 {[%clk 0:01:45.7]} 23... Qc7 {[%clk
0:01:42.8]} 24. Be4 {[%clk 0:01:18.6]} 24... Kg7 {[%clk 0:01:21.5]} 25. Nc6
{[%clk 0:01:11.8]} 25... Rfe8 {[%clk 0:00:59.3]} 26. Qd2 {[%clk 0:00:55.7]}
26... Nc4 {[%clk 0:00:25.7]} 27. Qd4+ {[%clk 0:00:51.6]} 27... Kg8 {[%clk
0:00:21.6]} 28. Bd3 {[%clk 0:00:37.4]} 28... Ne5 {[%clk 0:00:13.5]} 29. Nxe5
{[%clk 0:00:28.8]} 29... dxe5 {[%clk 0:00:13.5]} 30. Qxe5 {[%clk 0:00:29.7]}
30... Qd7 {[%clk 0:00:06.7]} 31. Qd4 {[%clk 0:00:23.3]} 31... Bc5 {[%clk
0:00:06.3]} 32. Qf6 {[%clk 0:00:14.1]} 32... Rxe1 {[%clk 0:00:05.7]} 33. Rxe1
{[%clk 0:00:14.2]} 33... Qxd5 {[%clk 0:00:05.9]} 34. a3 {[%clk 0:00:12.5]} 34...
Rc6 {[%clk 0:00:03]} 35. Re8+ {[%clk 0:00:09.4]} 35... Bf8 {[%clk 0:00:03.1]}
36. Qf2 {[%clk 0:00:03.1]} 36... Re6 {[%clk 0:00:02.8]} 37. Rxe6 {[%clk
0:00:02.6]} 37... Qxe6 {[%clk 0:00:03]} 38. b3 {[%clk 0:00:02.9]} 38... Bg7
{[%clk 0:00:02.3]} 39. Qe2 {[%clk 0:00:03.2]} 39... Qd6 {[%clk 0:00:01.4]} 40.
Qe4 {[%clk 0:00:02.9]} 40... Kh7 {[%clk 0:00:01.6]} 41. Ka2 {[%clk 0:00:02.1]}
41... Qh2 {[%clk 0:00:01]} 42. Qf4 {[%clk 0:00:01.1]} 1-0

[Event "*** Titled Tuesday Blitz"]
[Site "Chess.com"]
[Date "2021.03.16"]
[Round "8"]
[White "LubovMarkelova"]
[Black "Julianos82"]
[Result "0-1"]
[WhiteElo "2235"]
[BlackElo "2389"]
[TimeControl "180+1"]
[EndTime "11:28:23 PDT"]
[Termination "Julianos82 won on time"]

1. Nf3 {[%clk 0:03:00.9]} 1... d5 {[%clk 0:02:59.3]} 2. d4 {[%clk 0:03:00]} 2...
c6 {[%clk 0:02:59.5]} 3. c4 {[%clk 0:03:00.1]} 3... dxc4 {[%clk 0:03:00.4]} 4.
e3 {[%clk 0:02:57]} 4... Be6 {[%clk 0:02:56.6]} 5. Nc3 {[%clk 0:02:47.3]} 5...
b5 {[%clk 0:02:55]} 6. a4 {[%clk 0:02:46.3]} 6... b4 {[%clk 0:02:53.2]} 7. Ne4
{[%clk 0:02:43]} 7... Nf6 {[%clk 0:02:52.6]} 8. Nc5 {[%clk 0:02:40.8]} 8... Bd5
{[%clk 0:02:51.3]} 9. Nd2 {[%clk 0:02:28.8]} 9... e5 {[%clk 0:02:45.4]} 10. e4
{[%clk 0:02:07.8]} 10... exd4 {[%clk 0:02:43.1]} 11. exd5 {[%clk 0:02:04.8]}
11... Bxc5 {[%clk 0:02:36.6]} 12. Bxc4 {[%clk 0:02:04.1]} 12... O-O {[%clk
0:02:29.9]} 13. O-O {[%clk 0:02:03.1]} 13... cxd5 {[%clk 0:02:27.8]} 14. Bd3
{[%clk 0:01:54.1]} 14... Nc6 {[%clk 0:02:18.3]} 15. Nb3 {[%clk 0:01:52.5]} 15...
Be7 {[%clk 0:02:17.6]} 16. Bb5 {[%clk 0:01:47.7]} 16... Rc8 {[%clk 0:02:09.1]}
17. Nxd4 {[%clk 0:01:43.2]} 17... Nxd4 {[%clk 0:02:01.7]} 18. Qxd4 {[%clk
0:01:43.4]} 18... h6 {[%clk 0:01:56.7]} 19. Qxa7 {[%clk 0:01:42.1]} 19... Bc5
{[%clk 0:01:53.8]} 20. Qb7 {[%clk 0:01:14.9]} 20... Qd6 {[%clk 0:01:40.9]} 21.
Be2 {[%clk 0:00:39.2]} 21... Rfe8 {[%clk 0:00:40.2]} 22. Bf3 {[%clk 0:00:37.9]}
22... Rb8 {[%clk 0:00:35]} 23. Bf4 {[%clk 0:00:23.8]} 23... Qxf4 {[%clk
0:00:30.7]} 24. Qa6 {[%clk 0:00:22.8]} 24... Ng4 {[%clk 0:00:28.9]} 25. Bxg4
{[%clk 0:00:21.7]} 25... Qxg4 {[%clk 0:00:29.8]} 26. a5 {[%clk 0:00:18]} 26...
Re6 {[%clk 0:00:29.2]} 27. Qd3 {[%clk 0:00:16.4]} 27... Bd6 {[%clk 0:00:26.7]}
28. Qxd5 {[%clk 0:00:14.9]} 28... Rd8 {[%clk 0:00:22.3]} 29. Qb7 {[%clk
0:00:09.2]} 29... Rg6 {[%clk 0:00:19.6]} 30. g3 {[%clk 0:00:08.6]} 30... h5
{[%clk 0:00:16.3]} 31. a6 {[%clk 0:00:06.7]} 31... Bc5 {[%clk 0:00:15.6]} 32.
Qg2 {[%clk 0:00:04.9]} 32... h4 {[%clk 0:00:14.4]} 33. a7 {[%clk 0:00:03.6]}
33... Bxa7 {[%clk 0:00:12.6]} 34. Rxa7 {[%clk 0:00:03.1]} 34... Rd2 {[%clk
0:00:13.1]} 35. h3 {[%clk 0:00:01.8]} 35... Qd4 {[%clk 0:00:12]} 36. Ra8+ {[%clk
0:00:02.1]} 36... Kh7 {[%clk 0:00:11.7]} 37. g4 {[%clk 0:00:03]} 37... Rf6
{[%clk 0:00:11.9]} 38. Rb8 {[%clk 0:00:01.6]} 38... Qd3 {[%clk 0:00:10.8]} 39.
Re8 {[%clk 0:00:01.3]} 39... Rd1 {[%clk 0:00:10.6]} 40. Re3 {[%clk 0:00:01.6]}
40... Rxf1+ {[%clk 0:00:09.8]} 0-1

[Event "*** Titled Tuesday Blitz"]
[Site "Chess.com"]
[Date "2021.03.16"]
[Round "8"]
[White "PawnEatingZombie"]
[Black "canary2016"]
[Result "1-0"]
[WhiteElo "2180"]
[BlackElo "2003"]
[TimeControl "180+1"]
[EndTime "11:28:26 PDT"]
[Termination "PawnEatingZombie won by checkmate"]

1. d4 {[%clk 0:03:00.9]} 1... d5 {[%clk 0:02:52.4]} 2. c4 {[%clk 0:03:00.8]}
2... c6 {[%clk 0:02:52.1]} 3. Nc3 {[%clk 0:03:00.6]} 3... Nf6 {[%clk 0:02:52.1]}
4. e3 {[%clk 0:03:01]} 4... Bf5 {[%clk 0:02:51.4]} 5. cxd5 {[%clk 0:03:00.2]}
5... cxd5 {[%clk 0:02:51.4]} 6. Qb3 {[%clk 0:03:00.8]} 6... Qd7 {[%clk
0:02:48.1]} 7. Bb5 {[%clk 0:02:58]} 7... Nc6 {[%clk 0:02:47.9]} 8. Nf3 {[%clk
0:02:58.7]} 8... e6 {[%clk 0:02:46.9]} 9. Ne5 {[%clk 0:02:58.7]} 9... Qc7 {[%clk
0:02:45.2]} 10. Qa4 {[%clk 0:02:57.3]} 10... Rc8 {[%clk 0:02:38.2]} 11. Bd2
{[%clk 0:02:44.2]} 11... Bd6 {[%clk 0:02:32]} 12. Rc1 {[%clk 0:01:50.5]} 12...
O-O {[%clk 0:02:19.9]} 13. f4 {[%clk 0:01:18.4]} 13... Ne4 {[%clk 0:02:01]} 14.
Nxe4 {[%clk 0:01:14.8]} 14... Bxe4 {[%clk 0:02:00.2]} 15. O-O {[%clk 0:01:13.5]}
15... Bxe5 {[%clk 0:01:44.4]} 16. fxe5 {[%clk 0:01:11.6]} 16... Qb6 {[%clk
0:01:43.1]} 17. b4 {[%clk 0:00:41.5]} 17... a6 {[%clk 0:01:40.9]} 18. Bxc6
{[%clk 0:00:36.9]} 18... bxc6 {[%clk 0:01:25.1]} 19. Rc5 {[%clk 0:00:34.3]}
19... Bd3 {[%clk 0:01:12.6]} 20. Rfc1 {[%clk 0:00:33]} 20... Bb5 {[%clk
0:01:11.8]} 21. Qc2 {[%clk 0:00:27.3]} 21... Rc7 {[%clk 0:01:11]} 22. a3 {[%clk
0:00:21.3]} 22... Rfc8 {[%clk 0:01:10.1]} 23. e4 {[%clk 0:00:18]} 23... Bc4
{[%clk 0:00:43.9]} 24. h3 {[%clk 0:00:17.3]} 24... h6 {[%clk 0:00:40.4]} 25. Kh1
{[%clk 0:00:17.3]} 25... Rd7 {[%clk 0:00:37.4]} 26. Be3 {[%clk 0:00:16.7]} 26...
Ra8 {[%clk 0:00:35.1]} 27. Qf2 {[%clk 0:00:13.8]} 27... a5 {[%clk 0:00:33.2]}
28. Bd2 {[%clk 0:00:12]} 28... axb4 {[%clk 0:00:28.6]} 29. Bxb4 {[%clk
0:00:11.8]} 29... Raa7 {[%clk 0:00:22.1]} 30. Qf4 {[%clk 0:00:09.6]} 30... Qb7
{[%clk 0:00:13]} 31. exd5 {[%clk 0:00:09.5]} 31... Bxd5 {[%clk 0:00:11.9]} 32.
Rf1 {[%clk 0:00:08.8]} 32... Rc7 {[%clk 0:00:11.6]} 33. Rf2 {[%clk 0:00:09]}
33... Rd7 {[%clk 0:00:11.5]} 34. Kh2 {[%clk 0:00:09.5]} 34... Ra8 {[%clk
0:00:11.2]} 35. g4 {[%clk 0:00:09.9]} 35... Rf8 {[%clk 0:00:11.2]} 36. h4 {[%clk
0:00:09.9]} 36... Rc8 {[%clk 0:00:10.8]} 37. Kh3 {[%clk 0:00:09.3]} 37... Qa6
{[%clk 0:00:09.9]} 38. g5 {[%clk 0:00:08.5]} 38... Qd3+ {[%clk 0:00:09.7]} 39.
Qg3 {[%clk 0:00:06.7]} 39... Qg6 {[%clk 0:00:09.4]} 40. gxh6 {[%clk 0:00:05.3]}
40... Qxh6 {[%clk 0:00:09.4]} 41. Rf4 {[%clk 0:00:03.4]} 41... Rcc7 {[%clk
0:00:09.1]} 42. Rg4 {[%clk 0:00:03.5]} 42... Qh7 {[%clk 0:00:08.5]} 43. Rg5
{[%clk 0:00:02.8]} 43... Rb7 {[%clk 0:00:06.2]} 44. Rc1 {[%clk 0:00:03]} 44...
Rb8 {[%clk 0:00:03.5]} 45. Rg1 {[%clk 0:00:03.4]} 45... g6 {[%clk 0:00:03.6]}
46. h5 {[%clk 0:00:03.6]} 46... Kh8 {[%clk 0:00:02.8]} 47. Qh4 {[%clk 0:00:04]}
47... gxh5 {[%clk 0:00:02.7]} 48. Rxh5 {[%clk 0:00:04.1]} 48... Rg8 {[%clk
0:00:02.1]} 49. Rxh7# {[%clk 0:00:04.2]} 1-0

[Event "*** Titled Tuesday Blitz"]
[Site "Chess.com"]
[Date "2021.03.16"]
[Round "8"]
[White "ARTHURMOTIVATOR"]
[Black "SharapovEvgeny"]
[Result "1-0"]
[WhiteElo "2382"]
[BlackElo "2470"]
[TimeControl "180+1"]
[EndTime "11:28:29 PDT"]
[Termination "ARTHURMOTIVATOR won by resignation"]

1. e4 {[%clk 0:03:00.9]} 1... c5 {[%clk 0:02:59.2]} 2. b3 {[%clk 0:03:00.1]}
2... Nc6 {[%clk 0:02:58]} 3. Bb2 {[%clk 0:03:00.1]} 3... e5 {[%clk 0:02:57.5]}
4. Bb5 {[%clk 0:03:00.3]} 4... d6 {[%clk 0:02:57.1]} 5. Bxc6+ {[%clk 0:02:59.8]}
5... bxc6 {[%clk 0:02:56.5]} 6. Ne2 {[%clk 0:03:00.7]} 6... Nf6 {[%clk 0:02:56]}
7. d3 {[%clk 0:03:00.1]} 7... g6 {[%clk 0:02:55.2]} 8. O-O {[%clk 0:02:58.1]}
8... Bg7 {[%clk 0:02:54.7]} 9. f4 {[%clk 0:02:51.8]} 9... exf4 {[%clk 0:02:54]}
10. Nxf4 {[%clk 0:02:51.1]} 10... O-O {[%clk 0:02:52.6]} 11. Nd2 {[%clk
0:02:50.2]} 11... Nd7 {[%clk 0:02:47]} 12. Bxg7 {[%clk 0:02:47.2]} 12... Kxg7
{[%clk 0:02:46.7]} 13. Qg4 {[%clk 0:02:38.6]} 13... Ne5 {[%clk 0:02:42.7]} 14.
Qg3 {[%clk 0:02:38.2]} 14... Kh8 {[%clk 0:02:36.9]} 15. Nc4 {[%clk 0:02:35.3]}
15... Nxc4 {[%clk 0:02:34]} 16. bxc4 {[%clk 0:02:36.2]} 16... Qe7 {[%clk
0:02:30.8]} 17. Rae1 {[%clk 0:02:33.2]} 17... Be6 {[%clk 0:02:27.6]} 18. e5
{[%clk 0:02:29]} 18... d5 {[%clk 0:02:27]} 19. cxd5 {[%clk 0:01:59.2]} 19...
cxd5 {[%clk 0:02:26.2]} 20. h4 {[%clk 0:02:00.1]} 20... Rab8 {[%clk 0:02:18.4]}
21. h5 {[%clk 0:01:56]} 21... Rb2 {[%clk 0:01:45]} 22. Rf2 {[%clk 0:01:45.9]}
22... Rxa2 {[%clk 0:01:38]} 23. Ref1 {[%clk 0:01:45.6]} 23... Ra6 {[%clk
0:01:32.1]} 24. hxg6 {[%clk 0:01:44.3]} 24... hxg6 {[%clk 0:01:29.1]} 25. Nxg6+
{[%clk 0:01:41.9]} 25... fxg6 {[%clk 0:01:29.2]} 26. Rxf8+ {[%clk 0:01:41.2]}
26... Kg7 {[%clk 0:01:29]} 27. R8f6 {[%clk 0:01:37.5]} 27... Qe8 {[%clk
0:01:22.2]} 28. Qf4 {[%clk 0:01:35.5]} 28... Rc6 {[%clk 0:01:11.2]} 29. Qg5
{[%clk 0:01:23.2]} 29... a5 {[%clk 0:00:54.8]} 30. Rf8 {[%clk 0:01:17.6]} 30...
Qxf8 {[%clk 0:00:54.3]} 31. Rxf8 {[%clk 0:01:15.6]} 31... Kxf8 {[%clk
0:00:54.4]} 32. Qf6+ {[%clk 0:01:10.6]} 32... Ke8 {[%clk 0:00:52.7]} 33. Qxg6+
{[%clk 0:01:11]} 33... Kd7 {[%clk 0:00:52.6]} 34. Qg7+ {[%clk 0:01:10.8]} 34...
Kc8 {[%clk 0:00:52.3]} 35. Qa7 {[%clk 0:01:06.3]} 35... d4 {[%clk 0:00:47.5]}
36. Qa8+ {[%clk 0:01:03]} 36... Kd7 {[%clk 0:00:45.4]} 37. Qxa5 {[%clk
0:01:02.1]} 37... Bd5 {[%clk 0:00:45.1]} 38. Kf2 {[%clk 0:00:57.8]} 38... Ke6
{[%clk 0:00:44.4]} 39. Qd8 {[%clk 0:00:54.4]} 39... Kxe5 {[%clk 0:00:43.7]} 40.
g4 {[%clk 0:00:52.8]} 40... Rf6+ {[%clk 0:00:41.6]} 41. Kg3 {[%clk 0:00:52.6]}
41... Rf3+ {[%clk 0:00:26.7]} 42. Kh4 {[%clk 0:00:50.4]} 42... Re3 {[%clk
0:00:22.9]} 43. Qc7+ {[%clk 0:00:46.3]} 43... Ke6 {[%clk 0:00:20.9]} 44. Qb6+
{[%clk 0:00:42.3]} 44... Ke5 {[%clk 0:00:19.7]} 45. Qxc5 {[%clk 0:00:40.3]}
45... Re2 {[%clk 0:00:18.4]} 46. Qe7+ {[%clk 0:00:38.4]} 46... Be6 {[%clk
0:00:18.1]} 47. Qg7+ {[%clk 0:00:34.8]} 47... Kd5 {[%clk 0:00:17.6]} 48. Qb7+
{[%clk 0:00:33.2]} 48... Ke5 {[%clk 0:00:16.9]} 49. Qb5+ {[%clk 0:00:30.1]}
49... Bd5 {[%clk 0:00:15.3]} 50. c4 {[%clk 0:00:29.7]} 50... dxc3 {[%clk
0:00:14.5]} 51. d4+ {[%clk 0:00:29.5]} 51... Kxd4 {[%clk 0:00:13.2]} 52. Qxe2
{[%clk 0:00:30.4]} 52... Be4 {[%clk 0:00:12.7]} 53. g5 {[%clk 0:00:28]} 53... c2
{[%clk 0:00:12.5]} 54. Qd2+ {[%clk 0:00:27.9]} 54... Kc4 {[%clk 0:00:12.3]} 55.
Kg3 {[%clk 0:00:28]} 55... Kb3 {[%clk 0:00:12.1]} 56. Qc1 {[%clk 0:00:28.1]}
56... Bg6 {[%clk 0:00:11.2]} 57. Kf4 {[%clk 0:00:28]} 57... Kc3 {[%clk
0:00:11.4]} 58. Ke5 {[%clk 0:00:28.1]} 1-0

[Event "*** Titled Tuesday Blitz"]
[Site "Chess.com"]
[Date "2021.03.16"]
[Round "8"]
[White "MasterKroket"]
[Black "blitzking1729"]
[Result "0-1"]
[WhiteElo "2492"]
[BlackElo "2628"]
[TimeControl "180+1"]
[EndTime "11:28:30 PDT"]
[Termination "blitzking1729 won by resignation"]

1. d4 {[%clk 0:03:00.9]} 1... d5 {[%clk 0:02:57.2]} 2. c4 {[%clk 0:03:01.3]}
2... e5 {[%clk 0:02:46.9]} 3. dxe5 {[%clk 0:02:58.6]} 3... d4 {[%clk 0:02:47.8]}
4. Nf3 {[%clk 0:02:58.7]} 4... Nc6 {[%clk 0:02:48.1]} 5. a3 {[%clk 0:02:59.2]}
5... Nge7 {[%clk 0:02:47.8]} 6. Nbd2 {[%clk 0:02:59.9]} 6... Ng6 {[%clk
0:02:47.8]} 7. Nb3 {[%clk 0:03:00.5]} 7... Be6 {[%clk 0:02:45.7]} 8. Nbxd4
{[%clk 0:02:58.8]} 8... Bxc4 {[%clk 0:02:45]} 9. Bg5 {[%clk 0:02:51.8]} 9... Be7
{[%clk 0:02:40.4]} 10. Nxc6 {[%clk 0:02:49.1]} 10... Qxd1+ {[%clk 0:02:39.8]}
11. Rxd1 {[%clk 0:02:47.6]} 11... Bxg5 {[%clk 0:02:39.7]} 12. Na5 {[%clk
0:02:40.3]} 12... Ba6 {[%clk 0:01:20]} 13. Nxg5 {[%clk 0:02:38.2]} 13... Nxe5
{[%clk 0:01:20.5]} 14. e3 {[%clk 0:02:30.9]} 14... Bxf1 {[%clk 0:01:17.9]} 15.
Kxf1 {[%clk 0:02:31.8]} 15... b6 {[%clk 0:01:18.2]} 16. Nb3 {[%clk 0:02:18.4]}
16... Ke7 {[%clk 0:01:18.4]} 17. Nd4 {[%clk 0:02:06]} 17... c5 {[%clk
0:01:17.7]} 18. f4 {[%clk 0:01:53.4]} 18... Nc4 {[%clk 0:01:15.5]} 19. Nc6+
{[%clk 0:01:48.7]} 19... Kf8 {[%clk 0:01:11.7]} 20. Kf2 {[%clk 0:01:45.6]} 20...
h6 {[%clk 0:01:08.6]} 21. Nf3 {[%clk 0:01:40.8]} 21... Nxb2 {[%clk 0:01:08.4]}
22. Rd7 {[%clk 0:01:40.8]} 22... Kg8 {[%clk 0:01:07.1]} 23. Nfe5 {[%clk
0:01:37.4]} 23... Kh7 {[%clk 0:01:06.4]} 24. Rxf7 {[%clk 0:01:29.8]} 24... c4
{[%clk 0:01:01.8]} 25. Nd4 {[%clk 0:01:24.6]} 25... c3 {[%clk 0:00:58.2]} 26.
Ne6 {[%clk 0:01:18.1]} 26... Rhg8 {[%clk 0:00:53.7]} 27. Rc7 {[%clk 0:01:14.2]}
27... Rac8 {[%clk 0:00:53.3]} 28. Rc1 {[%clk 0:01:03.6]} 28... Rxc7 {[%clk
0:00:49.3]} 29. Nxc7 {[%clk 0:01:04.5]} 29... Rc8 {[%clk 0:00:49.4]} 30. Nb5
{[%clk 0:01:03.4]} 30... a6 {[%clk 0:00:46.9]} 31. Rxc3 {[%clk 0:00:59]} 31...
Nd1+ {[%clk 0:00:46]} 32. Ke1 {[%clk 0:00:48.6]} 32... Nxc3 {[%clk 0:00:45.7]}
33. Nd6 {[%clk 0:00:45.1]} 33... Rd8 {[%clk 0:00:41.7]} 34. Ndc4 {[%clk
0:00:36.3]} 34... b5 {[%clk 0:00:39]} 35. Nb2 {[%clk 0:00:35]} 35... Rc8 {[%clk
0:00:27.7]} 36. Kd2 {[%clk 0:00:31.8]} 36... Ne4+ {[%clk 0:00:27.2]} 37. Kd3
{[%clk 0:00:32.4]} 37... Nc5+ {[%clk 0:00:27.1]} 38. Kd2 {[%clk 0:00:30.8]}
38... a5 {[%clk 0:00:26.1]} 39. g4 {[%clk 0:00:28.1]} 39... Rd8+ {[%clk
0:00:22.4]} 40. Kc3 {[%clk 0:00:25.8]} 40... Rc8 {[%clk 0:00:22.8]} 41. Kd4
{[%clk 0:00:23]} 41... Nb3+ {[%clk 0:00:20.4]} 42. Kd3 {[%clk 0:00:23.1]} 42...
Nc1+ {[%clk 0:00:16.7]} 43. Kd2 {[%clk 0:00:22.6]} 43... Na2 {[%clk 0:00:15.9]}
44. Nf7 {[%clk 0:00:13]} 44... b4 {[%clk 0:00:15.2]} 45. axb4 {[%clk 0:00:12.9]}
45... Nxb4 {[%clk 0:00:15.3]} 46. e4 {[%clk 0:00:11.4]} 46... Rc2+ {[%clk
0:00:15.2]} 47. Ke3 {[%clk 0:00:10.6]} 47... Rxb2 {[%clk 0:00:15.4]} 48. e5
{[%clk 0:00:11.5]} 48... a4 {[%clk 0:00:15.5]} 49. e6 {[%clk 0:00:11.6]} 49...
a3 {[%clk 0:00:15.5]} 50. e7 {[%clk 0:00:12.2]} 50... Nd5+ {[%clk 0:00:15.5]}
0-1

[Event "*** Titled Tuesday Blitz"]
[Site "Chess.com"]
[Date "2021.03.16"]
[Round "8"]
[White "Joker_Gumble"]
[Black "ariosp"]
[Result "1-0"]
[WhiteElo "2332"]
[BlackElo "2199"]
[TimeControl "180+1"]
[EndTime "11:28:30 PDT"]
[Termination "Joker_Gumble won by resignation"]

1. d4 {[%clk 0:03:00.9]} 1... Nf6 {[%clk 0:02:59.1]} 2. c4 {[%clk 0:03:01.3]}
2... e6 {[%clk 0:02:59]} 3. Nc3 {[%clk 0:03:01.4]} 3... c5 {[%clk 0:02:58.3]} 4.
d5 {[%clk 0:03:01.4]} 4... exd5 {[%clk 0:02:58.4]} 5. cxd5 {[%clk 0:03:02.3]}
5... d6 {[%clk 0:02:58.3]} 6. e4 {[%clk 0:03:02.9]} 6... g6 {[%clk 0:02:58.3]}
7. Nge2 {[%clk 0:03:03.4]} 7... Bg7 {[%clk 0:02:58.1]} 8. Ng3 {[%clk 0:03:03.8]}
8... O-O {[%clk 0:02:55.9]} 9. Be2 {[%clk 0:03:03.7]} 9... a6 {[%clk 0:02:55.2]}
10. a4 {[%clk 0:03:03.2]} 10... Nbd7 {[%clk 0:02:53.3]} 11. f3 {[%clk
0:02:59.3]} 11... Rb8 {[%clk 0:02:50.5]} 12. Nf1 {[%clk 0:02:59]} 12... Re8
{[%clk 0:02:45.4]} 13. g4 {[%clk 0:02:56]} 13... Qc7 {[%clk 0:02:39.4]} 14. Bf4
{[%clk 0:02:55.9]} 14... Ne5 {[%clk 0:02:33.6]} 15. Ne3 {[%clk 0:02:53.3]} 15...
Bd7 {[%clk 0:02:25]} 16. h4 {[%clk 0:02:31.1]} 16... b5 {[%clk 0:02:23.8]} 17.
axb5 {[%clk 0:02:28.2]} 17... axb5 {[%clk 0:02:22.7]} 18. h5 {[%clk 0:02:28.7]}
18... b4 {[%clk 0:02:21.9]} 19. Nb1 {[%clk 0:02:05.7]} 19... Bb5 {[%clk
0:02:20.8]} 20. Bxb5 {[%clk 0:01:40.1]} 20... Rxb5 {[%clk 0:02:20.1]} 21. Bxe5
{[%clk 0:01:38.3]} 21... Rxe5 {[%clk 0:02:18.4]} 22. Nc4 {[%clk 0:01:32.4]}
22... Re8 {[%clk 0:02:15.4]} 23. hxg6 {[%clk 0:01:25.2]} 23... hxg6 {[%clk
0:02:11.7]} 24. Qa4 {[%clk 0:01:03.9]} 24... Rbb8 {[%clk 0:02:05.8]} 25. Qc6
{[%clk 0:01:00.2]} 25... Qxc6 {[%clk 0:01:41.8]} 26. dxc6 {[%clk 0:00:58.2]}
26... Nxe4 {[%clk 0:01:41.2]} 27. O-O {[%clk 0:00:37.1]} 27... d5 {[%clk
0:01:39.6]} 28. fxe4 {[%clk 0:00:14.5]} 28... dxc4 {[%clk 0:01:38.8]} 29. Nd2
{[%clk 0:00:15.4]} 29... c3 {[%clk 0:01:32.1]} 30. bxc3 {[%clk 0:00:12.8]} 30...
Bxc3 {[%clk 0:01:31.3]} 31. Rad1 {[%clk 0:00:11.7]} 31... Rbc8 {[%clk
0:01:28.5]} 32. Nc4 {[%clk 0:00:10.8]} 32... Rxc6 {[%clk 0:01:25.7]} 33. Rd7
{[%clk 0:00:11]} 33... f6 {[%clk 0:01:08.6]} 34. g5 {[%clk 0:00:08.3]} 34...
Rxe4 {[%clk 0:01:02.1]} 35. Nd6 {[%clk 0:00:06.8]} 35... Rg4+ {[%clk 0:00:57]}
36. Kh2 {[%clk 0:00:05.3]} 36... Rxg5 {[%clk 0:00:54.8]} 37. Ne8 {[%clk
0:00:05.3]} 37... Be5+ {[%clk 0:00:48.4]} 38. Kh3 {[%clk 0:00:04.9]} 38... b3
{[%clk 0:00:45.8]} 39. Rfd1 {[%clk 0:00:02.4]} 39... b2 {[%clk 0:00:43.3]} 40.
Rg7+ {[%clk 0:00:02.9]} 40... Kf8 {[%clk 0:00:40.5]} 41. Rdd7 {[%clk 0:00:03.8]}
41... Kxe8 {[%clk 0:00:33.5]} 42. Rb7 {[%clk 0:00:03.4]} 42... Rc7 {[%clk
0:00:20]} 43. Rb8+ {[%clk 0:00:01.3]} 1-0